bitfinex/quotes_ETHUSD_20250602
["timestamp","ask_amount","ask_price","bid_price","bid_amount"]
[1748864073854,0.8104,2486.9,2486.8,4.0212321]
[1748864074073,0.01,2486.9,2486.8,4.0212321]
[1748864076905,8.48831643,2486.9,2486.8,4.0212321]
[1748864077198,0.8299,2486.8,2486.7,4.02130741]
[1748864077349,0.8299,2486.8,2485.9,4.02257629]
[1748864077350,0.8299,2486.7,2486.2,4.02220255]
[1748864077551,4.9219,2486.6,2486.5,4.02161659]
[1748864077756,0.7551,2486.5,2486.0,4.02252614]
[1748864077993,3.55641643,2486.2,2486.1,4.40720505]
[1748864078552,0.7551,2486.0,2485.3,1.058]
[1748864078758,4.36401643,2485.5,2485.4,4.0233758]
[1748864079174,4.36401643,2485.5,2485.4,4.02349722]
[1748864085788,4.76549713,2485.5,2485.4,4.02349722]
[1748864086173,4.4954807,2485.5,2485.4,4.02349722]
[1748864086377,4.33291643,2485.7,2485.6,4.02317347]
[1748864086678,8.42691643,2485.7,2485.6,4.02317347]
[1748864087301,9.26960807,2485.7,2484.9,1.058]
[1748864087616,5.71319164,2485.7,2485.5,4.02326672]
[1748864088714,3.55641643,2485.6,2485.5,4.02326672]
[1748864089212,1.61919164,2485.7,2485.6,4.02317347]
[1748864089444,1.18143013,2485.7,2485.6,4.02317347]
[1748864089875,4.49893013,2485.7,2485.6,4.02317347]
[1748864090216,8.05534656,2485.7,2485.6,4.02317347]
[1748864094197,0.40493013,2485.7,2485.6,4.02317347]
[1748864094389,4.094,2485.7,2485.6,4.02317347]
[1748864095345,0.7712,2486.1,2485.5,4.81421663]
[1748864095544,0.39821512,2486.0,2485.9,4.02268796]
[1748864095695,4.094,2486.0,2485.9,4.02268796]
[1748864096098,4.32761643,2486.1,2486.0,4.02252614]
[1748864096333,8.42161643,2486.1,2486.0,4.02252614]
[1748864098639,9.26377807,2486.1,2486.0,4.02252614]
[1748864098840,11.68077807,2486.1,2486.0,4.02252614]
[1748864099048,9.26377807,2486.1,2486.0,4.02252614]
[1748864100343,9.66159083,2486.1,2486.0,4.02252614]
[1748864100548,9.66159083,2486.1,2485.9,4.02258904]
[1748864100745,9.66159083,2486.1,2486.0,4.02252614]
[1748864105024,9.66159083,2486.1,2485.9,4.0225893]
[1748864105224,5.26301276,2486.1,2486.0,4.02252614]
[1748864105511,8.81942919,2486.1,2486.0,4.02252614]
[1748864107751,0.39781276,2486.1,2486.0,4.02252614]
[1748864107960,4.37991643,2486.5,2486.4,4.02187902]
[1748864108121,8.91190807,2486.5,2486.4,4.02187902]
[1748864108626,8.47391643,2486.5,2486.4,4.02187902]
[1748864110752,8.87529229,2486.5,2486.4,4.02187902]
[1748864111050,4.78129229,2486.5,2486.4,4.02187902]
[1748864111254,0.40137586,2486.5,2486.4,4.02187902]
[1748864111457,4.094,2486.5,2486.4,4.02187902]
[1748864112349,4.85904164,2486.5,2486.4,4.02187902]
[1748864112780,5.62294164,2486.5,2486.2,4.02214259]
[1748864112957,3.55641643,2486.4,2486.3,4.02194547]
[1748864113157,4.47435224,2486.4,2486.3,4.02194547]
[1748864113791,3.55641643,2486.4,2486.3,4.02194547]
[1748864117783,7.64941643,2486.4,2486.3,4.02194547]
[1748864119491,10.06441643,2486.4,2486.3,4.02194547]
[1748864119654,7.64941643,2486.4,2486.3,4.02194547]
[1748864124099,3.55641643,2486.8,2486.7,4.02139381]
[1748864124311,4.01467083,2486.8,2486.7,4.02139381]
[1748864124463,8.50989755,2486.8,2486.7,4.02139381]
[1748864124669,3.95864315,2486.8,2486.7,4.02139381]
[1748864125104,8.05164315,2486.8,2486.7,4.02139381]
[1748864125979,3.95864315,2486.8,2486.7,4.02139381]
[1748864126287,0.01,2486.9,2486.8,4.0212321]
[1748864129627,0.01,2486.9,2486.8,4.8081321]
[1748864143553,0.01,2486.9,2486.8,4.84833704]
[1748864143762,0.01,2486.9,2486.8,4.8081321]
[1748864151730,0.01,2486.9,2486.8,4.84833718]
[1748864151961,0.01,2486.9,2486.8,4.8081321]
[1748864152777,0.01,2486.9,2486.8,12.84833625]
[1748864152930,0.01,2486.9,2486.8,12.8081321]
[1748864161944,0.01,2486.9,2486.8,12.0212321]
[1748864162144,0.01,2486.9,2486.8,4.0212321]
[1748864169876,0.01,2486.9,2486.8,4.06143734]
[1748864170406,0.01,2486.9,2486.8,13.89203734]
[1748864170605,0.01,2486.9,2486.8,13.8518321]
[1748864177935,0.01,2486.9,2486.8,17.9398321]
[1748864178075,0.01,2486.9,2486.8,12.7958321]
[1748864178275,0.01,2486.9,2486.8,13.8518321]
[1748864180417,0.01,2486.9,2486.8,13.0772321]
[1748864181413,0.01,2486.9,2486.8,12.0212321]
[1748864181600,4.35451643,2486.9,2486.8,4.0212321]
[1748864181803,0.01,2486.9,2486.8,4.0212321]
[1748864182011,0.01,2486.9,2486.8,4.06144066]
[1748864182428,0.01,2486.9,2486.8,4.0212321]
[1748864183193,0.01,2486.9,2486.8,4.06144023]
[1748864184585,0.01,2486.9,2486.8,4.0212321]
[1748864186298,0.01,2486.9,2486.8,12.06143656]
[1748864186615,0.01,2486.9,2486.8,12.0212321]
[1748864186783,0.01,2486.9,2486.8,12.8015321]
[1748864188486,0.01,2486.9,2486.8,12.0212321]
[1748864188711,0.01,2486.9,2486.8,4.0212321]
[1748864188712,0.8216,2486.9,2486.8,4.0212321]
[1748864189932,1.25940164,2486.9,2486.8,4.0212321]
[1748864190611,4.81581807,2486.9,2486.8,4.0212321]
[1748864191116,1.25940164,2486.9,2486.8,4.0212321]
[1748864191304,0.8216,2486.9,2486.8,4.0212321]
[1748864194090,4.37801643,2486.9,2486.8,4.0212321]
[1748864197907,0.7505,2486.8,2486.3,9.056]
[1748864198238,0.7505,2486.3,2486.2,4.02220255]
[1748864200430,0.7505,2486.5,2486.4,4.02187902]
[1748864205838,4.8395,2486.5,2486.4,4.02187902]
[1748864207796,0.7505,2486.5,2486.4,4.02187902]
[1748864208004,4.8395,2486.5,2486.4,4.02187902]
[1748864209309,5.67909164,2486.5,2486.4,4.02187902]
[1748864209606,4.8395,2486.5,2486.4,4.02187902]
[1748864209806,4.089,2486.5,2486.4,4.02187902]
[1748864211754,3.55641643,2486.6,2486.5,4.02171727]
[1748864212059,7.64541643,2486.6,2486.5,4.02171727]
[1748864220844,0.8086,2486.7,2486.6,4.02155553]
[1748864221050,4.8976,2486.7,2486.6,4.02155553]
[1748864221433,10.50496569,2487.6,2486.8,4.0212321]
[1748864221663,0.7705,2487.2,2486.8,4.0212321]
[1748864222042,4.32691643,2487.2,2486.8,4.0212321]
[1748864222238,3.55641643,2487.0,2486.8,4.0212321]
[1748864222441,4.9169,2486.9,2486.8,4.0212321]
[1748864223277,4.9159,2486.9,2486.8,4.0212321]
[1748864224467,4.098,2486.9,2486.7,4.02132343]
[1748864224671,5.08775807,2486.8,2486.7,4.02132343]
[1748864224966,4.32231643,2486.8,2486.7,4.02132343]
[1748864228533,0.01,2486.9,2486.8,4.0212321]
[1748864228735,0.01,2486.9,2486.8,4.8455321]
[1748864229350,0.01,2486.9,2486.8,5.94073858]
[1748864229580,0.01,2486.9,2486.8,5.9005321]
[1748864229777,0.01,2486.9,2486.8,13.9005321]
[1748864229946,0.01,2486.9,2486.8,12.8455321]
[1748864230154,0.01,2486.9,2486.8,13.9005321]
[1748864230840,0.01,2486.9,2486.8,4.0212321]
[1748864240688,3.56641643,2486.9,2486.8,4.0212321]
[1748864240894,0.7749,2486.8,2486.4,4.0217181]
[1748864241100,0.7749,2486.8,2486.7,4.02139381]
[1748864242298,4.33131643,2486.8,2486.7,4.02139381]
[1748864244497,0.01,2486.9,2486.8,4.0212321]
[1748864244672,4.098,2486.9,2486.8,4.0212321]
[1748864245917,4.58529,2486.9,2486.8,4.0212321]
[1748864246660,5.39089,2486.9,2486.8,4.0212321]
[1748864246861,5.39089,2486.9,2486.6,4.02150712]
[1748864247161,3.55641643,2486.7,2486.6,4.02150712]
[1748864254027,7.64441643,2486.7,2486.6,4.02150712]
[1748864261910,8.53914707,2486.7,2486.6,4.02150712]
[1748864263200,8.53914707,2486.7,2486.5,4.02161905]
[1748864263604,8.53914707,2486.7,2486.6,4.02155553]
[1748864264333,8.53914707,2486.7,2486.5,4.02164812]
[1748864264535,0.7669,2486.6,2486.5,4.02164812]
[1748864264835,1.69750471,2486.6,2486.5,4.02164812]
[1748864265239,1.69750471,2486.6,2486.4,4.02176757]
[1748864265407,7.64541643,2486.5,2486.3,4.02195038]
[1748864265601,7.64541643,2486.5,2485.9,4.02268796]
[1748864265805,0.7857,2486.3,2486.2,4.02210154]
[1748864266044,8.43111643,2486.3,2486.2,4.02210154]
[1748864266537,8.43111643,2486.3,2486.1,4.02235716]
[1748864266740,8.43111643,2486.3,2486.0,4.02242096]
[1748864267045,3.55641643,2486.1,2486.0,4.02242096]
[1748864267239,7.64541643,2486.1,2486.0,4.02242096]
[1748864268940,8.05218272,2486.1,2486.0,4.02242096]
[1748864272744,0.40676629,2486.1,2486.0,4.02242096]
[1748864272943,7.64541643,2486.2,2486.1,4.02236434]
[1748864273150,8.49017807,2486.2,2486.1,4.02236434]
[1748864273313,8.49017807,2486.2,2485.7,0.8177]
[1748864273514,3.55641643,2485.8,2485.7,4.02301162]
[1748864273715,7.64541643,2485.8,2485.7,4.02301162]
[1748864274649,3.55641643,2486.0,2485.7,4.02301162]
[1748864274851,3.55641643,2486.0,2485.9,4.02268796]
[1748864275050,4.40117807,2486.2,2486.1,4.02236434]
[1748864275254,7.64541643,2486.2,2486.1,4.02236434]
[1748864277060,0.8324,2486.3,2486.1,4.02236434]
[1748864277061,3.55641643,2486.4,2486.2,4.02220255]
[1748864277352,4.089,2486.3,2486.2,4.02220255]
[1748864277654,4.48523475,2486.3,2486.2,4.02220255]
[1748864281166,0.39623475,2486.3,2486.2,4.02220255]
[1748864281366,4.089,2486.3,2486.2,4.02220255]
[1748864282077,4.48487271,2486.3,2486.2,4.02220255]
[1748864290560,0.39587271,2486.3,2486.2,4.02220255]
[1748864290761,4.089,2486.3,2486.2,5.64345826]
[1748864290968,4.089,2486.3,2486.2,4.82665826]
[1748864291177,4.089,2486.3,2486.2,4.02220255]
[1748864291460,4.089,2486.3,2485.9,0.8168]
[1748864291796,4.089,2486.3,2486.1,4.02227076]
[1748864292292,4.089,2486.2,2486.1,4.83916434]
[1748864292460,0.8072,2486.7,2486.4,4.02185027]
[1748864292663,2.415,2486.4,2485.9,4.02257291]
[1748864292887,4.46208,2486.3,2486.0,4.02244935]
[1748864293165,3.55641643,2486.1,2486.0,4.02244935]
[1748864293494,7.64541643,2486.1,2486.0,4.02244935]
[1748864294699,7.64541643,2486.1,2485.8,4.02278364]
[1748864294885,3.55641643,2485.9,2485.8,4.02278364]
[1748864295200,8.10588409,2485.9,2485.7,4.02294837]
[1748864295386,8.89568409,2485.9,2485.7,4.02294837]
[1748864295993,9.30191636,2485.9,2485.6,4.02302689]
[1748864296197,3.55641643,2485.7,2485.6,4.02302689]
[1748864296394,7.64541643,2485.7,2485.6,4.02302689]
[1748864296895,8.57560807,2485.7,2485.2,0.7668]
[1748864297099,5.01919164,2485.7,2485.5,4.02324839]
[1748864297268,3.1829,2485.6,2485.2,4.02380823]
[1748864297466,6.505,2485.5,2485.0,4.0240834]
[1748864297667,0.7766,2485.4,2485.0,4.0240834]
[1748864297890,7.23516,2485.3,2484.6,5.90675153]
[1748864298095,7.23516,2485.3,2484.9,4.02423108]
[1748864298292,3.55641643,2485.0,2484.9,4.02423108]
[1748864298495,7.64841643,2485.0,2484.9,4.02423108]
[1748864299795,8.40321643,2485.0,2484.9,4.02423108]
[1748864299967,9.24353807,2485.0,2484.8,4.02440097]
[1748864300172,3.55641643,2484.9,2484.8,4.02440097]
[1748864304786,7.64641643,2484.9,2484.8,4.02440097]
[1748864309018,7.64641643,2484.9,2484.7,4.02454403]
[1748864310403,7.64641643,2484.9,2484.7,4.02450441]
[1748864310605,1.19576329,2484.8,2484.7,4.02450441]
[1748864314985,1.19576329,2484.8,2484.3,4.02526322]
[1748864314986,0.7806,2484.7,2484.5,4.0248256]
[1748864315191,7.64741643,2484.6,2484.5,4.0248256]
[1748864315493,3.55641643,2484.6,2484.5,4.0248256]
[1748864315845,0.55,2485.2,2484.5,4.0248256]
[1748864316045,3.55641643,2484.8,2484.7,4.02463074]
[1748864316318,7.64741643,2484.8,2484.7,4.02463074]
[1748864318542,3.55641643,2484.8,2484.7,4.02463074]
[1748864318749,7.64741643,2484.8,2484.7,4.02463074]
[1748864324637,8.41215807,2484.8,2484.7,4.02463074]
[1748864325145,0.8,2484.7,2484.4,4.02501843]
[1748864325343,3.55641643,2484.5,2484.4,4.02501843]
[1748864325905,3.55641643,2484.5,2484.0,0.7954]
[1748864326239,4.091,2484.4,2484.3,4.02520237]
[1748864326951,4.091,2484.4,2483.6,5.08227771]
[1748864326952,0.8031,2484.3,2483.7,4.02613033]
[1748864327105,4.091,2484.2,2483.6,4.02627309]
[1748864327310,19.41551643,2484.2,2483.5,4.02650796]
[1748864327531,21.39719301,2484.2,2483.6,4.02640148]
[1748864327741,21.39719301,2484.2,2483.6,4.02639613]
[1748864327935,21.39719301,2484.2,2483.5,4.02652809]
[1748864328137,24.95360944,2484.2,2483.6,4.02633701]
[1748864328339,24.95360944,2484.2,2483.7,4.02624796]
[1748864328643,25.28960633,2484.2,2483.5,4.02652809]
[1748864328846,29.42828328,2484.2,2483.5,4.02652809]
[1748864329149,25.87186685,2484.2,2483.7,4.02616547]
[1748864330644,8.55,2484.1,2483.6,4.02633261]
[1748864330855,3.55641643,2483.8,2483.6,4.02633261]
[1748864331150,4.093,2483.7,2483.1,0.01]
[1748864331446,3.55641643,2483.2,2483.1,4.03722403]
[1748864331648,7.64941643,2483.2,2483.1,4.03722403]
[1748864331834,11.78809338,2483.2,2483.1,4.03722403]
[1748864332630,7.90022473,2483.2,2483.1,4.03722403]
[1748864332844,12.00122473,2483.2,2483.1,4.03722403]
[1748864333255,11.79609338,2483.2,2483.1,4.03722403]
[1748864334218,7.69509338,2483.2,2483.1,4.03722403]
[1748864334451,11.79609338,2483.2,2483.1,4.03722403]
[1748864336632,11.79609338,2483.2,2483.1,4.80792403]
[1748864338760,14.21109338,2483.2,2483.1,4.80792403]
[1748864338963,11.79609338,2483.2,2483.1,4.80792403]
[1748864339621,4.13867695,2483.2,2483.1,4.80792403]
[1748864340452,8.87460272,2483.2,2483.1,4.03722403]
[1748864340665,8.87460272,2483.2,2483.1,0.01]
[1748864340824,8.87460272,2483.2,2483.1,4.03722403]
[1748864341898,8.87460272,2483.2,2483.1,0.01]
[1748864342021,9.42460272,2483.2,2483.1,0.01]
[1748864342230,10.25360272,2483.2,2483.1,0.01]
[1748864342818,10.58959961,2483.2,2483.1,0.01]
[1748864343357,18.58959961,2483.2,2483.1,0.01]
[1748864343536,21.00459961,2483.2,2483.1,0.01]
[1748864343864,0.8097,2482.8,2481.9,0.8107]
[1748864344047,0.8097,2482.8,2481.7,4.02949253]
[1748864344048,3.55641643,2482.2,2481.7,4.02949253]
[1748864344238,7.66741643,2482.2,2482.1,4.03884654]
[1748864344563,0.8097,2482.6,2482.1,4.03884654]
[1748864344564,0.8097,2482.6,2482.5,4.02819738]
[1748864344768,3.89241332,2482.6,2482.5,4.02819738]
[1748864345061,8.00541332,2482.6,2482.5,4.02819738]
[1748864346069,11.04956258,2482.6,2482.5,4.02819738]
[1748864346765,10.71356569,2482.6,2482.5,4.02819738]
[1748864347372,11.11379443,2482.6,2482.5,4.02819738]
[1748864349186,12.22517387,2482.6,2482.5,4.02819738]
[1748864349485,12.22517387,2482.6,2482.1,0.01]
[1748864349486,13.04447387,2482.6,2482.1,0.01]
[1748864349671,13.04447387,2482.6,2482.5,4.02819738]
[1748864349672,9.48805744,2482.6,2482.5,4.02819738]
[1748864349870,10.00032461,2482.6,2482.4,4.02832586]
[1748864350061,4.77594517,2482.6,2482.5,4.02819738]
[1748864350265,8.88694517,2482.6,2482.5,4.02819738]
[1748864350550,0.40022874,2482.6,2482.5,4.02819738]
[1748864350769,7.66741643,2482.6,2482.5,4.02819738]
[1748864351089,8.07217296,2482.6,2482.5,4.02819738]
[1748864352191,8.87939026,2482.6,2482.5,4.02819738]
[1748864354887,13.47545996,2483.1,2482.9,4.02747299]
[1748864355054,10.88131643,2483.0,2482.4,4.02832586]
[1748864355259,3.55641643,2482.5,2482.4,4.02832586]
[1748864355455,3.55641643,2482.7,2482.6,4.02803512]
[1748864355660,7.67941643,2482.7,2482.6,4.02803512]
[1748864356091,8.84648471,2482.7,2482.6,4.02803512]
[1748864356299,0.7802,2482.6,2482.5,4.02817963]
[1748864356496,4.33661643,2482.6,2482.5,4.02817963]
[1748864357491,4.33661643,2482.6,2482.5,4.02819738]
[1748864358787,7.70506828,2482.7,2482.6,4.02803512]
[1748864358788,1.16706828,2482.7,2482.6,4.02803512]
[1748864358974,4.52212664,2482.7,2482.6,4.02803512]
[1748864359496,5.32998095,2482.7,2482.6,4.02803512]
[1748864362674,3.55641643,2483.1,2483.0,4.02738622]
[1748864362875,7.67941643,2483.1,2483.0,4.02738622]
[1748864363108,3.55641643,2483.1,2483.0,4.02738622]
[1748864363305,8.50591452,2483.5,2483.0,4.02738622]
[1748864363504,3.55641643,2483.2,2483.1,4.02722403]
[1748864363911,7.68041643,2483.2,2483.1,4.02722403]
[1748864365613,7.68041643,2483.2,2483.0,4.02729818]
[1748864365812,0.8063,2483.1,2483.0,4.02738622]
[1748864366117,0.8063,2483.1,2482.5,4.02819483]
[1748864366324,3.55641643,2482.6,2482.5,4.02819483]
[1748864366503,7.68041643,2482.6,2482.5,4.02819483]
[1748864367914,4.124,2482.6,2482.5,4.02819483]
[1748864369837,3.55641643,2482.8,2482.7,4.02787288]
[1748864370044,4.121,2482.8,2482.7,4.02787288]
[1748864370825,3.55641643,2483.3,2483.2,4.02706185]
[1748864371043,2.03556089,2483.4,2483.3,4.02689968]
[1748864371256,6.15756089,2483.4,2483.3,4.02689968]
[1748864371544,1.20656089,2483.4,2483.3,4.02689968]
[1748864372031,5.32756089,2483.4,2483.3,4.02689968]
[1748864372226,8.88397732,2483.4,2483.3,4.02689968]
[1748864372928,8.88297732,2483.4,2483.3,4.02689968]
[1748864374125,11.29797732,2483.4,2483.3,4.02689968]
[1748864374899,2.415,2483.2,2482.5,0.8256]
[1748864375101,2.415,2483.0,2482.9,4.02745263]
[1748864375300,5.97141643,2483.0,2482.9,4.02745263]
[1748864376330,2.415,2482.8,2482.7,4.02779239]
[1748864376491,10.09041643,2482.8,2482.7,4.02779239]
[1748864376998,7.67641643,2482.8,2482.7,4.02779239]
[1748864383655,3.55641643,2482.8,2482.7,4.02779239]
[1748864383846,7.67341643,2482.8,2482.7,4.02779239]
[1748864386846,11.17861807,2482.8,2482.7,4.02779239]
[1748864389358,4.45199689,2483.4,2483.3,4.02689968]
[1748864389514,4.45899689,2483.4,2483.3,4.02689968]
[1748864390425,0.33599689,2483.4,2483.3,4.02689968]
[1748864390643,4.46099689,2483.4,2483.3,4.02689968]
[1748864390814,0.33599689,2483.4,2483.3,4.02689968]
[1748864391022,4.45999689,2483.4,2483.3,4.02689968]
[1748864391352,5.54252594,2483.4,2483.3,4.02689968]
[1748864395420,4.45999689,2483.4,2483.3,4.02689968]
[1748864395846,0.33599689,2483.4,2483.3,4.02689968]
[1748864396051,4.45599689,2483.4,2483.3,4.02689968]
[1748864396252,0.7825,2483.3,2483.2,4.02697245]
[1748864396557,5.49929547,2483.3,2483.2,4.02697245]
[1748864397555,5.49929547,2483.3,2482.7,4.02778994]
[1748864397556,2.965,2483.2,2482.7,4.02778994]
[1748864397753,3.55641643,2482.8,2482.3,4.02852193]
[1748864397945,0.95278329,2482.8,2482.7,4.02787288]
[1748864398140,2.415,2483.0,2482.8,4.02764887]
[1748864398364,2.415,2483.0,2482.7,4.02787288]
[1748864398365,2.965,2483.0,2482.9,4.02754843]
[1748864398775,7.085,2483.0,2482.9,4.02754843]
[1748864399178,10.64141643,2483.0,2482.9,4.02754843]
[1748864399765,10.64141643,2483.0,2482.8,4.02761904]
[1748864400081,1.14725164,2482.9,2482.8,4.02761904]
[1748864401352,3.56225164,2482.9,2482.8,4.02761904]
[1748864402887,1.14725164,2482.9,2482.8,4.02761904]
[1748864403899,3.56625164,2482.9,2482.8,4.02761904]
[1748864404946,1.14725164,2482.9,2482.8,4.02761904]
[1748864405290,1.14725164,2482.9,2482.7,4.02780081]
[1748864405291,0.33599689,2483.2,2483.1,4.78992403]
[1748864405864,4.45599689,2483.2,2483.1,4.78992403]
[1748864406909,3.55641643,2483.5,2483.4,4.02673753]
[1748864407071,7.67541643,2483.5,2483.4,4.02673753]
[1748864407268,3.55641643,2483.5,2483.4,4.02673753]
[1748864407451,0.49834274,2483.8,2483.6,4.02641327]
[1748864407655,4.05475917,2483.8,2483.7,4.02625115]
[1748864407886,8.17375917,2483.8,2483.7,4.02625115]
[1748864409088,8.99113509,2483.8,2483.7,4.02625115]
[1748864410080,9.39855352,2483.8,2483.7,4.02625115]
[1748864410285,8.5811776,2483.8,2483.7,4.02625115]
[1748864412888,8.5811776,2483.8,2483.6,4.02637978]
[1748864413385,8.5811776,2483.8,2483.7,4.02625115]
[1748864413754,8.5811776,2483.8,2483.6,4.02633461]
[1748864413978,0.789,2483.7,2483.0,0.7874]
[1748864414298,3.55641643,2483.1,2483.0,4.81477821]
[1748864414463,7.67941643,2483.1,2483.0,4.81477821]
[1748864415557,7.67941643,2483.1,2483.0,4.02737821]
[1748864415889,11.23583286,2483.1,2482.6,0.7603]
[1748864416090,3.55641643,2482.7,2482.6,4.02803512]
[1748864416293,7.68241643,2482.7,2482.6,4.02803512]
[1748864416467,3.55641643,2482.9,2482.7,4.02787288]
[1748864416668,3.55641643,2483.1,2483.0,4.02738622]
[1748864416874,0.777,2483.3,2483.1,4.02712901]
[1748864417057,0.33599689,2483.2,2483.1,4.02712901]
[1748864417257,4.46199689,2483.2,2483.1,4.02712901]
[1748864418094,11.31642775,2483.2,2483.1,4.02712901]
[1748864418288,12.52577053,2483.2,2483.1,4.02712901]
[1748864418498,12.52577053,2483.2,2483.1,4.02722403]
[1748864420268,6.85443086,2483.3,2483.2,4.02706185]
[1748864420455,10.97743086,2483.3,2483.2,4.02706185]
[1748864420660,4.123,2483.3,2483.2,4.02706185]
[1748864420888,10.97743086,2483.3,2483.2,4.02706185]
[1748864424116,12.07517395,2483.3,2483.2,4.02706185]
[1748864424915,5.22074309,2483.3,2483.2,4.02706185]
[1748864425088,6.85443086,2483.5,2483.4,4.02673753]
[1748864425295,10.97643086,2483.5,2483.4,4.02673753]
[1748864426095,10.97643086,2483.5,2483.3,4.0268485]
[1748864426297,10.97643086,2483.5,2483.3,4.02675976]
[1748864426718,10.97643086,2483.5,2483.4,4.02673753]
[1748864426895,13.27719572,2483.5,2483.4,4.02673753]
[1748864427098,13.27719572,2483.5,2483.3,4.02681801]
[1748864427597,13.27719572,2483.5,2483.4,4.02673753]
[1748864428884,2.419,2483.4,2483.3,4.02684128]
[1748864431218,6.85443086,2483.5,2483.4,4.02673753]
[1748864431394,12.06099572,2483.5,2483.4,4.02673753]
[1748864433190,14.47999572,2483.5,2483.4,4.02673753]
[1748864434227,14.47999572,2483.5,2483.3,4.02681591]
[1748864434421,14.47999572,2483.5,2483.0,4.81704775]
[1748864434615,14.47999572,2483.5,2483.4,4.02673753]
[1748864437003,10.97243086,2483.5,2483.4,4.02673753]
[1748864437204,7.68677621,2483.5,2483.4,4.02673753]
[1748864442743,7.68177621,2483.5,2483.4,4.02673753]
[1748864442947,10.10077621,2483.5,2483.2,4.0269619]
[1748864443138,3.56877621,2483.3,2483.2,4.02693149]
[1748864443341,7.68177621,2483.3,2483.2,4.02693149]
[1748864446658,3.56877621,2483.3,2483.2,4.02693149]
[1748864446859,0.40741843,2483.8,2483.7,4.02625115]
[1748864447027,4.112,2483.8,2483.7,4.02625115]
[1748864448931,6.531,2483.8,2483.7,4.02625115]
[1748864450029,6.531,2483.8,2483.6,4.02632854]
[1748864450239,6.531,2483.8,2483.7,4.02625115]
[1748864450447,11.58369459,2483.8,2483.7,4.02625115]
[1748864450627,11.58369459,2483.8,2483.6,4.02631515]
[1748864451458,11.58369459,2483.8,2483.7,4.02625115]
[1748864451762,11.58369459,2483.8,2483.6,4.02632293]
[1748864452641,11.58369459,2483.8,2483.7,4.02625115]
[1748864453130,11.57969459,2483.8,2483.7,4.02625115]
[1748864455962,7.47169459,2483.8,2483.6,4.02631869]
[1748864456131,3.24595946,2483.7,2483.6,4.02631869]
[1748864457278,7.35095946,2483.7,2483.6,4.02631869]
[1748864457562,6.524,2483.7,2483.6,4.02631869]
[1748864458386,6.523,2483.7,2483.6,4.02631869]
[1748864458543,3.96292697,2483.8,2483.7,4.02625115]
[1748864458743,8.06692697,2483.8,2483.7,4.02625115]
[1748864460966,10.48592697,2483.8,2483.5,4.02657539]
[1748864461170,3.2256927,2483.7,2483.6,4.02627639]
[1748864461876,4.0208927,2483.7,2483.5,4.02656217]
[1748864462075,7.67077621,2483.6,2483.5,4.02656217]
[1748864462643,10.08977621,2483.6,2483.3,4.02682417]
[1748864462843,3.56877621,2483.4,2483.3,4.02682417]
[1748864463038,7.67077621,2483.4,2483.3,4.02682417]
[1748864463674,10.08977621,2483.4,2483.0,0.795]
[1748864463877,10.08977621,2483.4,2482.9,4.02751146]
[1748864463878,3.56877621,2483.1,2482.9,4.02751146]
[1748864464201,10.08877621,2483.0,2482.8,4.02758372]
[1748864464484,3.56877621,2482.9,2482.8,4.02758372]
[1748864465276,3.56877621,2483.1,2483.0,4.02738622]
[1748864465450,7.67177621,2483.1,2483.0,4.02738622]
[1748864465646,3.56877621,2483.1,2483.0,4.02738622]
[1748864465849,7.67177621,2483.1,2483.0,4.83908622]
[1748864466481,3.56877621,2483.1,2483.0,4.83908622]
[1748864466865,7.67277621,2483.1,2483.0,4.83908622]
[1748864469470,4.104,2483.1,2483.0,4.83908622]
[1748864470255,3.56877621,2483.3,2483.2,4.02706185]
[1748864470480,7.67077621,2483.3,2483.2,4.02706185]
[1748864471487,7.66977621,2483.3,2483.2,4.02706185]
[1748864476568,3.56877621,2483.3,2483.2,4.02706185]
[1748864476767,7.66677621,2483.3,2483.2,4.02706185]
[1748864478202,5.98777621,2483.7,2483.1,4.02718717]
[1748864478404,5.98777621,2483.7,2483.6,4.02641327]
[1748864478610,10.86632383,2483.7,2483.6,4.02641327]
[1748864478815,10.86632383,2483.7,2483.5,4.02643918]
[1748864479111,3.2293,2483.6,2483.5,4.02657539]
[1748864479613,3.2293,2483.6,2483.1,4.80271584]
[1748864479810,4.099,2483.5,2483.4,4.02673753]
[1748864480007,8.47866097,2483.5,2483.4,4.02673753]
[1748864482603,7.66677621,2483.5,2483.4,4.02673753]
[1748864483797,10.08577621,2483.5,2483.4,4.02673753]
[1748864485195,10.4897324,2483.5,2483.4,4.02673753]
[1748864493541,10.4897324,2483.5,2483.3,4.02680568]
[1748864493542,11.2510324,2483.5,2483.3,4.02680568]
[1748864493914,11.8010324,2483.5,2483.4,4.02673753]
[1748864494313,7.1530324,2483.5,2483.4,4.02673753]
[1748864494512,10.4897324,2483.5,2483.4,4.02673753]
[1748864503125,10.4897324,2483.5,2483.0,0.7767]
[1748864503126,11.2918324,2483.5,2483.0,0.7767]
[1748864503372,3.56877621,2483.1,2483.0,4.02738622]
[1748864503582,5.98777621,2483.3,2483.2,4.02706185]
[1748864503886,0.40395619,2483.5,2483.4,4.02673753]
[1748864504181,8.0027731,2483.5,2483.4,4.02673753]
[1748864504351,3.9047731,2483.5,2483.4,4.02673753]
[1748864504553,8.0027731,2483.5,2483.4,4.02673753]
[1748864504959,8.40016515,2483.5,2483.4,4.02673753]
[1748864515198,10.27658167,2483.5,2483.0,4.02738622]
[1748864515398,3.56877621,2483.2,2483.1,4.02722403]
[1748864515604,3.56877621,2483.4,2483.3,4.02689968]
[1748864515894,7.66677621,2483.4,2483.3,4.02689968]
[1748864518410,0.73338894,2483.5,2483.4,4.02673753]
[1748864518612,8.06416826,2483.5,2483.4,4.02673753]
[1748864519475,8.87058509,2483.5,2483.3,4.02689968]
[1748864519779,8.87058509,2483.5,2482.4,0.8265]
[1748864519780,2.419,2483.2,2482.4,0.8265]
[1748864519992,3.56877621,2482.5,2482.4,4.85485965]
[1748864520192,4.098,2482.5,2482.4,4.85485965]
[1748864520393,6.517,2483.0,2482.9,4.02754843]
[1748864520715,6.517,2483.0,2482.9,3.69466018]
[1748864520716,4.101,2483.0,2482.9,3.69466018]
[1748864524633,4.102,2483.0,2482.9,4.02754843]
[1748864525314,3.56877621,2483.1,2483.0,4.02738622]
[1748864525529,0.7945,2483.4,2483.3,4.02689968]
[1748864525731,8.9070071,2483.4,2483.3,4.02689968]
[1748864526047,8.9070071,2483.4,2483.2,4.02691251]
[1748864526345,8.9070071,2483.4,2482.7,0.8265]
[1748864526850,7.67077621,2483.4,2483.3,4.02689968]
[1748864527351,2.81639205,2483.5,2483.4,4.02673753]
[1748864527352,0.39739205,2483.5,2483.4,4.02673753]
[1748864527653,0.39739205,2483.5,2483.3,4.02689968]
[1748864527654,3.56877621,2483.8,2483.7,4.02625115]
[1748864527813,8.10777383,2483.8,2483.7,4.02625115]